[Event "Top 12 Féminin 2026"]
[Site "Asnières-sur-Seine, France"]
[Date "2026.05.15"]
[Round "3.8"]
[White "Negre, Emilie"]
[Black "Guerin, Juliette"]
[Result "1-0"]
[TimeControl "1h30 / 40 moves + 30m + 30sec/move"]
[WhiteTitle "WFM"]
[BlackTitle "-"]
[WhiteFideId "-"]
[BlackFideId "-"]
[WhiteElo "2101"]
[BlackElo "1920"]

1. d4 {[%clk 01:30:55]} {[%emt 00:00:03]} Nf6 {[%clk 01:30:55]} {[%emt
00:00:05]} 2. c4 {[%clk 01:31:13]} {[%emt 00:00:13]} g6 {[%clk 01:31:22]}
{[%emt 00:00:04]} 3. Nc3 {[%clk 01:31:32]} {[%emt 00:00:10]} Bg7 {[%clk
01:31:43]} {[%emt 00:00:09]} 4. e4 {[%clk 01:31:56]} {[%emt 00:00:06]} d6
{[%clk 01:32:10]} {[%emt 00:00:03]} 5. Nf3 {[%clk 01:32:13]} {[%emt 00:00:13]}
O-O {[%clk 01:32:25]} {[%emt 00:00:15]} 6. Bd3 {[%clk 01:32:32]} {[%emt
00:00:11]} e5 {[%clk 01:32:40]} {[%emt 00:00:15]} 7. d5 {[%clk 01:32:57]}
{[%emt 00:00:05]} a5 {[%clk 01:24:27]} {[%emt 00:08:43]} 8. O-O {[%clk
01:32:58]} {[%emt 00:00:29]} Na6 {[%clk 01:24:50]} {[%emt 00:00:07]} 9. a3
{[%clk 01:33:23]} {[%emt 00:00:05]} Nc5 {[%clk 01:24:28]} {[%emt 00:00:53]} 10.
Bc2 {[%clk 01:33:47]} {[%emt 00:00:06]} Bd7 {[%clk 01:24:19]} {[%emt 00:00:40]}
11. b3 {[%clk 01:34:06]} {[%emt 00:00:11]} b6 {[%clk 01:22:15]} {[%emt
00:02:34]} 12. Rb1 {[%clk 01:33:53]} {[%emt 00:00:43]} Ne8 {[%clk 01:08:41]}
{[%emt 00:14:04]} 13. b4 {[%clk 01:33:33]} {[%emt 00:00:50]} Nb7 {[%clk
01:08:13]} {[%emt 00:00:59]} 14. Bg5 {[%clk 01:24:01]} {[%emt 00:10:02]} f6
{[%clk 01:08:18]} {[%emt 00:00:25]} 15. Bd2 {[%clk 01:14:14]} {[%emt 00:10:16]}
f5 {[%clk 01:06:12]} {[%emt 00:02:37]} 16. exf5 {[%clk 01:09:25]} {[%emt
00:05:18]} gxf5 {[%clk 00:43:00]} {[%emt 00:23:42]} 17. Ng5 {[%clk 00:52:15]}
{[%emt 00:17:40]} h6 {[%clk 00:42:34]} {[%emt 00:00:56]} 18. Ne6 {[%clk
00:52:23]} {[%emt 00:00:22]} Bxe6 {[%clk 00:42:49]} {[%emt 00:00:15]} 19. dxe6
{[%clk 00:52:51]} {[%emt 00:00:02]} Qf6 {[%clk 00:41:43]} {[%emt 00:01:36]} 20.
Qf3 {[%clk 00:50:17]} {[%emt 00:03:04]} e4 {[%clk 00:38:18]} {[%emt 00:03:56]}
21. Nxe4 {[%clk 00:39:53]} {[%emt 00:10:53]} Qxe6 {[%clk 00:29:44]} {[%emt
00:09:04]} 22. Ng3 {[%clk 00:37:35]} {[%emt 00:02:46]} Ra7 {[%clk 00:24:06]}
{[%emt 00:06:11]} 23. Rfe1 {[%clk 00:31:10]} {[%emt 00:06:54]} Qf6 {[%clk
00:13:17]} {[%emt 00:11:20]} 24. Nxf5 {[%clk 00:28:00]} {[%emt 00:03:39]} Kh8
{[%clk 00:13:00]} {[%emt 00:00:48]} 25. Qh5 {[%clk 00:24:25]} {[%emt 00:04:05]}
Ra8 {[%clk 00:10:24]} {[%emt 00:03:06]} 26. Bxh6 {[%clk 00:17:38]} {[%emt
00:07:18]} Bxh6 {[%clk 00:10:24]} {[%emt 00:00:29]} 27. Nxh6 {[%clk 00:17:36]}
{[%emt 00:00:32]} Qxf2+ {[%clk 00:07:22]} {[%emt 00:03:32]} 28. Kh1 {[%clk
00:18:02]} {[%emt 00:00:05]} Qxc2 {[%clk 00:07:17]} {[%emt 00:00:35]} 29. Nf5+
{[%clk 00:18:02]} {[%emt 00:00:28]} Kg8 {[%clk 00:07:39]} {[%emt 00:00:10]} 30.
Qg6+ {[%clk 00:18:27]} {[%emt 00:00:04]} Kh8 {[%clk 00:07:34]} {[%emt
00:00:35]} 31. Qh6+ {[%clk 00:18:40]} {[%emt 00:00:16]} Kg8 {[%clk 00:07:59]}
{[%emt 00:00:06]} 32. Ne7+ {[%clk 00:18:12]} {[%emt 00:00:58]} Kf7 {[%clk
00:08:02]} {[%emt 00:00:28]} 33. Rf1+ {[%clk 00:18:16]} {[%emt 00:00:25]} Kxe7
{[%clk 00:08:10]} {[%emt 00:00:23]} 34. Rbe1+ {[%clk 00:18:24]} {[%emt
00:00:21]} Kd7 {[%clk 00:06:59]} {[%emt 00:01:41]} 35. Qe6+ {[%clk 00:18:43]}
{[%emt 00:00:10]} 1-0

[Event "Top 12 Féminin 2026"]
[Site "Asnières-sur-Seine, France"]
[Date "2026.05.15"]
[Round "3.9"]
[White "Osmak, Yuliaa"]
[Black "Vega Gutierrez, Sabrina"]
[Result "1/2-1/2"]
[TimeControl "1h30 / 40 moves + 30m + 30sec/move"]
[WhiteTitle "IM"]
[BlackTitle "IM"]
[WhiteFideId "14101602"]
[BlackFideId "-"]
[WhiteElo "2451"]
[BlackElo "2375"]

1. d4 {[%clk 01:28:05]} {[%emt 00:02:54]} d5 {[%clk 01:30:52]} {[%emt
00:00:08]} 2. c4 {[%clk 01:28:11]} {[%emt 00:00:26]} e6 {[%clk 01:31:14]}
{[%emt 00:00:07]} 3. Nc3 {[%clk 01:28:33]} {[%emt 00:00:08]} Nf6 {[%clk
01:31:36]} {[%emt 00:00:07]} 4. cxd5 {[%clk 01:28:46]} {[%emt 00:00:17]} Nxd5
{[%clk 01:31:58]} {[%emt 00:00:08]} 5. e4 {[%clk 01:28:49]} {[%emt 00:00:27]}
Nxc3 {[%clk 01:32:21]} {[%emt 00:00:08]} 6. bxc3 {[%clk 01:29:14]} {[%emt
00:00:05]} c5 {[%clk 01:32:44]} {[%emt 00:00:06]} 7. Rb1 {[%clk 01:28:46]}
{[%emt 00:00:59]} Be7 {[%clk 01:32:54]} {[%emt 00:00:19]} 8. Nf3 {[%clk
01:27:39]} {[%emt 00:01:38]} O-O {[%clk 01:32:52]} {[%emt 00:00:31]} 9. h4
{[%clk 01:27:35]} {[%emt 00:00:35]} b6 {[%clk 01:32:16]} {[%emt 00:01:05]} 10.
h5 {[%clk 01:22:34]} {[%emt 00:05:31]} h6 {[%clk 01:32:35]} {[%emt 00:00:11]}
11. Rh3 {[%clk 01:22:41]} {[%emt 00:00:23]} Kh8 {[%clk 01:30:41]} {[%emt
00:02:24]} 12. Rg3 {[%clk 01:21:11]} {[%emt 00:02:00]} cxd4 {[%clk 01:30:12]}
{[%emt 00:00:59]} 13. cxd4 {[%clk 01:20:04]} {[%emt 00:01:37]} Bb7 {[%clk
01:30:16]} {[%emt 00:00:25]} 14. Bd3 {[%clk 01:14:30]} {[%emt 00:06:05]} Nd7
{[%clk 01:30:16]} {[%emt 00:00:30]} 15. Qd2 {[%clk 01:09:13]} {[%emt 00:05:47]}
Rc8 {[%clk 01:23:29]} {[%emt 00:07:16]} 16. Ke2 {[%clk 00:59:10]} {[%emt
00:10:33]} f5 {[%clk 01:11:31]} {[%emt 00:12:28]} 17. Rxg7 {[%clk 00:36:45]}
{[%emt 00:22:55]} Kxg7 {[%clk 01:11:42]} {[%emt 00:00:19]} 18. Qxh6+ {[%clk
00:37:10]} {[%emt 00:00:05]} Kg8 {[%clk 01:12:04]} {[%emt 00:00:09]} 19. Qg6+
{[%clk 00:30:57]} {[%emt 00:06:44]} Kh8 {[%clk 01:12:31]} {[%emt 00:00:02]} 20.
Qh6+ {[%clk 00:31:19]} {[%emt 00:00:08]} Kg8 {[%clk 01:12:56]} {[%emt
00:00:05]} 21. Qg6+ {[%clk 00:25:38]} {[%emt 00:06:11]} Kh8 {[%clk 01:13:24]}
{[%emt 00:00:02]} 22. Qh6+ {[%clk 00:25:52]} {[%emt 00:00:17]} 1/2-1/2

[Event "Top 12 Féminin 2026"]
[Site "Asnières-sur-Seine, France"]
[Date "2026.05.15"]
[Round "3.10"]
[White "Haussernot, Cecile"]
[Black "Daulyte-Cornette, Deimante"]
[Result "0-1"]
[TimeControl "1h30 / 40 moves + 30m + 30sec/move"]
[WhiteTitle "WIM"]
[BlackTitle "IM"]
[WhiteFideId "-"]
[BlackFideId "-"]
[WhiteElo "2243"]
[BlackElo "2389"]

1. d4 {[%clk 01:30:57]} {[%emt 00:00:03]} d5 {[%clk 01:30:43]} {[%emt
00:00:17]} 2. Bf4 {[%clk 01:31:22]} {[%emt 00:00:05]} e6 {[%clk 01:29:12]}
{[%emt 00:02:01]} 3. e3 {[%clk 01:27:08]} {[%emt 00:04:44]} c5 {[%clk
01:29:03]} {[%emt 00:00:39]} 4. Nf3 {[%clk 01:27:12]} {[%emt 00:00:26]} Nc6
{[%clk 01:29:15]} {[%emt 00:00:18]} 5. c3 {[%clk 01:23:04]} {[%emt 00:04:37]}
Bd6 {[%clk 01:28:54]} {[%emt 00:00:51]} 6. Bg3 {[%clk 01:22:58]} {[%emt
00:00:35]} Nh6 {[%clk 01:27:19]} {[%emt 00:02:06]} 7. Bd3 {[%clk 01:22:05]}
{[%emt 00:01:23]} O-O {[%clk 01:27:20]} {[%emt 00:00:29]} 8. Nbd2 {[%clk
01:12:23]} {[%emt 00:10:13]} cxd4 {[%clk 01:27:27]} {[%emt 00:00:22]} 9. exd4
{[%clk 01:12:23]} {[%emt 00:00:30]} f6 {[%clk 01:27:11]} {[%emt 00:00:46]} 10.
Qc2 {[%clk 01:12:01]} {[%emt 00:00:51]} e5 {[%clk 01:27:11]} {[%emt 00:00:30]}
11. dxe5 {[%clk 01:02:48]} {[%emt 00:09:43]} fxe5 {[%clk 01:27:22]} {[%emt
00:00:19]} 12. Bxh7+ {[%clk 01:01:17]} {[%emt 00:02:01]} Kh8 {[%clk 01:27:40]}
{[%emt 00:00:12]} 13. O-O-O {[%clk 01:00:54]} {[%emt 00:00:54]} Nf5 {[%clk
01:26:39]} {[%emt 00:01:31]} 14. Bg6 {[%clk 00:53:55]} {[%emt 00:07:29]} Qf6
{[%clk 01:16:28]} {[%emt 00:10:41]} 15. Bh5 {[%clk 00:38:31]} {[%emt 00:15:54]}
Qh6 {[%clk 01:15:24]} {[%emt 00:01:34]} 16. Bg4 {[%clk 00:37:29]} {[%emt
00:01:33]} Nfd4 {[%clk 01:15:25]} {[%emt 00:00:28]} 17. cxd4 {[%clk 00:35:36]}
{[%emt 00:02:23]} Bxg4 {[%clk 01:15:34]} {[%emt 00:00:22]} 18. Nxe5 {[%clk
00:31:06]} {[%emt 00:04:59]} Nxe5 {[%clk 01:06:47]} {[%emt 00:09:17]} 19. dxe5
{[%clk 00:31:31]} {[%emt 00:00:06]} Rac8 {[%clk 01:06:06]} {[%emt 00:01:11]}
0-1

[Event "Top 12 Féminin 2026"]
[Site "Asnières-sur-Seine, France"]
[Date "2026.05.15"]
[Round "3.11"]
[White "Schippke, Manon"]
[Black "Ciarletta, Iris"]
[Result "1/2-1/2"]
[TimeControl "1h30 / 40 moves + 30m + 30sec/move"]
[WhiteTitle "WIM"]
[BlackTitle "-"]
[WhiteFideId "-"]
[BlackFideId "-"]
[WhiteElo "2311"]
[BlackElo "1901"]

1. d4 {[%clk 01:30:58]} {[%emt 00:00:02]} d5 {[%clk 01:29:38]} {[%emt
00:01:22]} 2. c4 {[%emt 00:01:13]} e6 {[%clk 01:29:02]} 3. Nc3 {[%clk
01:29:14]} {[%emt 00:02:36]} Nf6 {[%clk 01:29:20]} {[%emt 00:00:13]} 4. Nf3
{[%clk 01:28:43]} {[%emt 00:01:01]} c6 {[%clk 01:25:36]} {[%emt 00:04:13]} 5.
e3 {[%clk 01:29:09]} {[%emt 00:00:05]} Nbd7 {[%clk 01:25:26]} {[%emt 00:00:40]}
6. Qc2 {[%clk 01:29:29]} {[%emt 00:00:10]} Bd6 {[%clk 01:23:46]} {[%emt
00:02:10]} 7. Be2 {[%clk 01:27:03]} {[%emt 00:02:56]} O-O {[%clk 01:21:38]}
{[%emt 00:02:39]} 8. O-O {[%clk 01:27:02]} {[%emt 00:00:31]} Re8 {[%clk
01:20:43]} {[%emt 00:01:25]} 9. Rd1 {[%clk 01:25:07]} {[%emt 00:02:25]} Qe7
{[%clk 01:16:09]} {[%emt 00:05:04]} 10. b3 {[%clk 01:11:32]} {[%emt 00:14:05]}
dxc4 {[%clk 01:09:25]} {[%emt 00:07:14]} 11. Bxc4 {[%clk 01:10:50]} {[%emt
00:01:12]} Nb6 {[%clk 01:06:22]} {[%emt 00:03:32]} 12. Be2 {[%clk 01:04:19]}
{[%emt 00:07:01]} e5 {[%clk 00:58:11]} {[%emt 00:08:41]} 13. dxe5 {[%clk
01:00:26]} {[%emt 00:04:24]} Bxe5 {[%clk 00:58:23]} {[%emt 00:00:17]} 14. Bb2
{[%clk 00:55:22]} {[%emt 00:05:34]} Bc7 {[%clk 00:54:17]} {[%emt 00:04:36]} 15.
h3 {[%clk 00:54:38]} {[%emt 00:01:15]} h6 {[%clk 00:50:50]} {[%emt 00:03:57]}
16. Rac1 {[%clk 00:52:56]} {[%emt 00:02:12]} Bd6 {[%clk 00:46:26]} {[%emt
00:04:54]} 17. Nb1 {[%clk 00:45:39]} {[%emt 00:07:48]} Nbd5 {[%clk 00:44:07]}
{[%emt 00:02:48]} 18. Bd4 {[%clk 00:40:09]} {[%emt 00:06:00]} Qe6 {[%clk
00:37:13]} {[%emt 00:07:25]} 19. Bc4 {[%clk 00:39:13]} {[%emt 00:01:26]} Ne4
{[%clk 00:33:57]} {[%emt 00:03:46]} 20. Nbd2 {[%clk 00:37:14]} {[%emt
00:02:29]} Nxd2 {[%clk 00:30:17]} {[%emt 00:04:09]} 21. Rxd2 {[%clk 00:37:10]}
{[%emt 00:00:34]} Qe7 {[%clk 00:28:19]} {[%emt 00:02:28]} 22. Bxd5 {[%clk
00:31:48]} {[%emt 00:05:53]} cxd5 {[%clk 00:28:36]} {[%emt 00:00:12]} 23. Bc5
{[%clk 00:30:41]} {[%emt 00:01:38]} Be6 {[%clk 00:23:22]} {[%emt 00:05:43]} 24.
Bxd6 {[%clk 00:31:06]} {[%emt 00:00:05]} Qxd6 {[%clk 00:23:43]} {[%emt
00:00:09]} 25. Qc5 {[%clk 00:24:53]} {[%emt 00:06:43]} Qxc5 {[%clk 00:22:21]}
{[%emt 00:01:52]} 26. Rxc5 {[%clk 00:25:21]} {[%emt 00:00:03]} Rec8 {[%clk
00:22:31]} {[%emt 00:00:19]} 27. Rxc8+ {[%clk 00:25:17]} {[%emt 00:00:34]} Rxc8
{[%clk 00:22:51]} {[%emt 00:00:09]} 28. Nd4 {[%clk 00:24:35]} {[%emt 00:01:13]}
Kf8 {[%clk 00:20:10]} {[%emt 00:03:11]} 29. f4 {[%clk 00:24:30]} {[%emt
00:00:34]} g6 {[%clk 00:20:01]} {[%emt 00:00:39]} 30. Kf2 {[%clk 00:24:00]}
{[%emt 00:01:01]} h5 {[%clk 00:19:16]} {[%emt 00:01:14]} 31. Kf3 {[%clk
00:23:26]} {[%emt 00:01:04]} Ke7 {[%clk 00:19:09]} {[%emt 00:00:36]} 32. g4
{[%clk 00:22:43]} {[%emt 00:01:12]} hxg4+ {[%clk 00:18:10]} {[%emt 00:01:30]}
33. hxg4 {[%clk 00:23:11]} {[%emt 00:00:03]} Kf6 {[%clk 00:16:25]} {[%emt
00:02:15]} 34. Rd1 {[%clk 00:19:34]} {[%emt 00:04:08]} a6 {[%clk 00:15:21]}
{[%emt 00:01:34]} 35. Rh1 {[%clk 00:19:58]} {[%emt 00:00:06]} Bd7 {[%clk
00:14:24]} {[%emt 00:01:27]} 36. Rd1 {[%clk 00:17:31]} {[%emt 00:02:58]} Be6
{[%clk 00:14:31]} {[%emt 00:00:22]} 37. a4 {[%clk 00:15:20]} {[%emt 00:02:42]}
Rc3 {[%clk 00:12:35]} {[%emt 00:02:25]} 38. b4 {[%clk 00:13:18]} {[%emt
00:02:32]} Rc4 {[%clk 00:12:28]} {[%emt 00:00:37]} 39. Rb1 {[%clk 00:13:29]}
{[%emt 00:00:20]} Bd7 {[%clk 00:11:31]} {[%emt 00:01:26]} 40. a5 {[%clk
00:13:47]} {[%emt 00:00:12]} Ke7 {[%clk 00:09:36]} {[%emt 00:02:25]} 41. Rb2
{[%clk 00:10:39]} {[%emt 00:03:38]} Rc8 {[%clk 00:04:57]} {[%emt 00:05:09]} 42.
Kg3 {[%clk 00:07:38]} {[%emt 00:03:31]} Rc1 {[%clk 00:02:48]} {[%emt 00:02:38]}
43. Ne2 {[%clk 00:06:29]} {[%emt 00:01:38]} Rc4 {[%clk 00:02:00]} {[%emt
00:01:19]} 44. Nd4 {[%clk 00:06:53]} {[%emt 00:00:06]} Rc1 {[%clk 00:02:06]}
{[%emt 00:00:23]} 45. Ne2 {[%clk 00:07:19]} {[%emt 00:00:04]} Rc4 {[%clk
00:02:07]} {[%emt 00:00:29]} 46. Nd4 {[%clk 00:07:45]} {[%emt 00:00:04]}
1/2-1/2

[Event "Top 12 Féminin 2026"]
[Site "Asnières-sur-Seine, France"]
[Date "2026.05.15"]
[Round "3.12"]
[White "Marcellier, Lucie"]
[Black "Tomasi, Elise"]
[Result "0-1"]
[TimeControl "1h30 / 40 moves + 30m + 30sec/move"]
[WhiteTitle "-"]
[BlackTitle "WFM"]
[WhiteFideId "-"]
[BlackFideId "-"]
[WhiteElo "1885"]
[BlackElo "2072"]

1. d4 {[%clk 01:30:57]} {[%emt 00:00:03]} d5 {[%clk 01:30:42]} {[%emt
00:00:18]} 2. Bf4 {[%clk 01:31:15]} {[%emt 00:00:11]} e6 {[%clk 01:31:07]}
{[%emt 00:00:06]} 3. e3 {[%clk 01:31:35]} {[%emt 00:00:11]} Bd6 {[%clk
01:31:08]} {[%emt 00:00:29]} 4. Nf3 {[%clk 01:31:44]} {[%emt 00:00:20]} Ne7
{[%clk 01:31:03]} {[%emt 00:00:35]} 5. Ne5 {[%clk 01:23:13]} {[%emt 00:09:02]}
c5 {[%clk 01:25:13]} {[%emt 00:06:20]} 6. Nd2 {[%clk 01:17:21]} {[%emt
00:06:21]} f6 {[%clk 01:08:32]} {[%emt 00:17:11]} 7. Bb5+ {[%clk 01:07:04]}
{[%emt 00:10:47]} Nbc6 {[%clk 01:08:36]} {[%emt 00:00:26]} 8. Nef3 {[%clk
00:39:32]} {[%emt 00:28:02]} Bxf4 {[%clk 01:02:37]} {[%emt 00:06:29]} 9. exf4
{[%clk 00:39:56]} {[%emt 00:00:06]} cxd4 {[%clk 01:00:43]} {[%emt 00:02:25]} 10.
Nxd4 {[%clk 00:38:09]} {[%emt 00:02:16]} O-O {[%clk 01:00:12]} {[%emt
00:01:01]} 11. N4b3 {[%clk 00:33:24]} {[%emt 00:05:16]} Qd6 {[%clk 00:55:53]}
{[%emt 00:04:48]} 12. Qf3 {[%clk 00:27:37]} {[%emt 00:06:17]} a6 {[%clk
00:49:40]} {[%emt 00:06:43]} 13. Be2 {[%clk 00:26:27]} {[%emt 00:01:39]} Nb4
{[%clk 00:44:39]} {[%emt 00:05:31]} 14. Bd1 {[%clk 00:22:15]} {[%emt 00:04:42]}
Ng6 {[%clk 00:43:28]} {[%emt 00:01:39]} 15. g3 {[%clk 00:19:53]} {[%emt
00:02:54]} e5 {[%clk 00:43:35]} {[%emt 00:00:23]} 16. f5 {[%clk 00:17:40]}
{[%emt 00:02:44]} e4 {[%clk 00:40:40]} {[%emt 00:03:25]} 17. Qh5 {[%clk
00:17:23]} {[%emt 00:00:46]} Ne7 {[%clk 00:38:45]} {[%emt 00:02:26]} 18. a3
{[%clk 00:16:08]} {[%emt 00:01:46]} Nbc6 {[%clk 00:38:10]} {[%emt 00:01:05]} 19.
g4 {[%clk 00:15:50]} {[%emt 00:00:47]} Qe5 {[%clk 00:33:23]} {[%emt 00:05:17]}
20. Rb1 {[%clk 00:14:06]} {[%emt 00:02:14]} b6 {[%clk 00:23:20]} {[%emt
00:10:33]} 21. Be2 {[%clk 00:13:37]} {[%emt 00:00:59]} Bb7 {[%clk 00:23:25]}
{[%emt 00:00:25]} 22. O-O {[%clk 00:12:45]} {[%emt 00:01:22]} Qf4 {[%clk
00:21:16]} {[%emt 00:02:39]} 23. Qh3 {[%clk 00:12:12]} {[%emt 00:01:02]} g6
{[%clk 00:20:00]} {[%emt 00:01:47]} 24. fxg6 {[%clk 00:11:36]} {[%emt
00:01:06]} Nxg6 {[%clk 00:18:16]} {[%emt 00:02:14]} 25. Qg3 {[%clk 00:08:34]}
{[%emt 00:03:32]} Kh8 {[%clk 00:16:42]} {[%emt 00:02:04]} 26. Rbd1 {[%clk
00:08:02]} {[%emt 00:01:01]} Rad8 {[%clk 00:16:03]} {[%emt 00:01:10]} 27. Qe3
{[%clk 00:07:18]} {[%emt 00:01:14]} Nce5 {[%clk 00:10:43]} {[%emt 00:05:50]} 28.
h3 {[%clk 00:06:26]} {[%emt 00:01:22]} Bc8 {[%clk 00:10:38]} {[%emt 00:00:35]}
29. Nd4 {[%clk 00:04:02]} {[%emt 00:02:54]} f5 {[%clk 00:10:25]} {[%emt
00:00:43]} 30. gxf5 {[%clk 00:01:49]} {[%emt 00:02:43]} Bxf5 {[%clk 00:10:46]}
{[%emt 00:00:10]} 31. Qxf4 {[%clk 00:01:45]} {[%emt 00:00:34]} Nxf4 {[%clk
00:11:09]} {[%emt 00:00:06]} 32. Kh2 {[%clk 00:01:35]} {[%emt 00:00:40]} Bxh3
{[%clk 00:11:11]} {[%emt 00:00:27]} 33. Rfe1 {[%clk 00:01:26]} {[%emt
00:00:42]} Rg8 {[%clk 00:10:09]} {[%emt 00:01:31]} 34. Rg1 {[%clk 00:01:27]}
{[%emt 00:00:29]} Bg4 {[%clk 00:10:16]} {[%emt 00:00:24]} 35. Rde1 {[%clk
00:01:12]} {[%emt 00:00:45]} Rd6 {[%clk 00:09:48]} {[%emt 00:00:58]} 36. Rg3
{[%clk 00:01:11]} {[%emt 00:00:31]} Rh6+ {[%clk 00:09:11]} {[%emt 00:01:07]} 37.
Kg1 {[%clk 00:01:35]} {[%emt 00:00:06]} Nxe2+ {[%clk 00:07:45]} {[%emt
00:01:56]} 38. Rxe2 {[%clk 00:01:08]} {[%emt 00:00:57]} Bxe2 {[%clk 00:07:52]}
{[%emt 00:00:23]} 39. Rxg8+ {[%clk 00:01:18]} {[%emt 00:00:19]} Kxg8 {[%clk
00:08:17]} {[%emt 00:00:06]} 40. Nxe2 {[%clk 00:01:43]} {[%emt 00:00:04]} Rg6+
{[%clk 00:07:55]} {[%emt 00:00:52]} 41. Kf1 {[%clk 00:00:39]} {[%emt 00:01:34]}
Nf3 {[%clk 00:07:50]} {[%emt 00:00:35]} 42. Nb3 {[%clk 00:30:12]} {[%emt
00:00:58]} h5 {[%clk 00:38:06]} {[%emt 00:00:14]} 43. Nbd4 {[%clk 00:27:46]}
{[%emt 00:02:57]} Nxd4 {[%clk 00:36:22]} {[%emt 00:02:14]} 44. Nxd4 {[%clk
00:28:07]} {[%emt 00:00:08]} h4 {[%clk 00:36:49]} {[%emt 00:00:03]} 45. Nf5
{[%clk 00:28:16]} {[%emt 00:00:21]} h3 {[%clk 00:35:52]} {[%emt 00:01:27]} 46.
Ne7+ {[%clk 00:28:24]} {[%emt 00:00:21]} Kf7 {[%clk 00:36:21]} {[%emt
00:00:01]} 47. Nxg6 {[%clk 00:28:46]} {[%emt 00:00:09]} Kxg6 {[%clk 00:36:50]}
{[%emt 00:00:01]} 48. Kg1 {[%clk 00:29:10]} {[%emt 00:00:06]} d4 {[%clk
00:36:58]} {[%emt 00:00:22]} 49. Kh2 {[%clk 00:28:35]} {[%emt 00:01:05]} d3
{[%clk 00:37:22]} {[%emt 00:00:06]} 0-1

[Event "Top 12 Féminin 2026"]
[Site "Asnières-sur-Seine, France"]
[Date "2026.05.15"]
[Round "3.13"]
[White "Krasteva, Beloslava"]
[Black "Gaal, Zsoka"]
[Result "1/2-1/2"]
[TimeControl "1h30 / 40 moves + 30m + 30sec/move"]
[WhiteTitle "WGM"]
[BlackTitle "IM"]
[WhiteFideId "-"]
[BlackFideId "-"]
[WhiteElo "2285"]
[BlackElo "2374"]

1. d4 {[%clk 01:24:21]} {[%emt 00:06:37]} Nf6 {[%clk 01:30:45]} {[%emt
00:00:16]} 2. c4 {[%clk 01:24:31]} {[%emt 00:00:21]} g6 {[%clk 01:31:05]}
{[%emt 00:00:10]} 3. Nc3 {[%clk 01:24:53]} {[%emt 00:00:07]} Bg7 {[%clk
01:31:28]} {[%emt 00:00:07]} 4. e4 {[%clk 01:25:10]} {[%emt 00:00:13]} d6
{[%clk 01:31:50]} {[%emt 00:00:07]} 5. h3 {[%clk 01:25:21]} {[%emt 00:00:20]}
e5 {[%clk 01:31:51]} {[%emt 00:00:29]} 6. d5 {[%clk 01:25:32]} {[%emt
00:00:19]} a5 {[%clk 01:32:12]} {[%emt 00:00:09]} 7. Bg5 {[%clk 01:25:24]}
{[%emt 00:00:38]} Na6 {[%clk 01:29:32]} {[%emt 00:03:11]} 8. Bd3 {[%clk
01:25:34]} {[%emt 00:00:20]} h6 {[%clk 01:18:38]} {[%emt 00:11:24]} 9. Be3
{[%clk 01:25:52]} {[%emt 00:00:11]} Nd7 {[%clk 01:09:50]} {[%emt 00:09:18]} 10.
a3 {[%clk 00:56:42]} {[%emt 00:29:40]} O-O {[%clk 01:00:12]} {[%emt 00:10:07]}
11. b4 {[%clk 00:47:34]} {[%emt 00:09:39]} f5 {[%clk 00:59:39]} {[%emt
00:01:01]} 12. Nf3 {[%clk 00:46:41]} {[%emt 00:01:24]} Nf6 {[%clk 00:55:02]}
{[%emt 00:05:08]} 13. Rb1 {[%clk 00:45:12]} {[%emt 00:01:59]} Qe7 {[%clk
00:48:31]} {[%emt 00:07:01]} 14. Qc2 {[%clk 00:40:19]} {[%emt 00:05:23]} axb4
{[%clk 00:40:17]} {[%emt 00:08:44]} 15. axb4 {[%clk 00:40:44]} {[%emt
00:00:05]} Nh5 {[%clk 00:40:30]} {[%emt 00:00:16]} 16. Ne2 {[%clk 00:37:05]}
{[%emt 00:04:09]} c5 {[%clk 00:35:03]} {[%emt 00:05:57]} 17. dxc6 {[%clk
00:35:08]} {[%emt 00:02:27]} d5 {[%clk 00:33:08]} {[%emt 00:02:26]} 18. cxd5
{[%clk 00:24:44]} {[%emt 00:10:53]} Nxb4 {[%clk 00:33:07]} {[%emt 00:00:30]} 19.
Qb3 {[%clk 00:18:02]} {[%emt 00:07:12]} Nxd3+ {[%clk 00:30:22]} {[%emt
00:03:16]} 20. Qxd3 {[%clk 00:18:30]} {[%emt 00:00:01]} bxc6 {[%clk 00:28:20]}
{[%emt 00:02:33]} 21. dxc6 {[%clk 00:15:11]} {[%emt 00:03:49]} Kh7 {[%clk
00:21:42]} {[%emt 00:07:08]} 22. Qc2 {[%clk 00:13:31]} {[%emt 00:02:10]} Qf7
{[%clk 00:18:11]} {[%emt 00:04:01]} 23. O-O {[%clk 00:11:16]} {[%emt 00:02:45]}
fxe4 {[%clk 00:17:31]} {[%emt 00:01:10]} 24. Nd2 {[%clk 00:10:28]} {[%emt
00:01:18]} Nf4 {[%clk 00:17:53]} {[%emt 00:00:08]} 25. Nc3 {[%clk 00:08:33]}
{[%emt 00:02:25]} Ba6 {[%clk 00:12:22]} {[%emt 00:06:01]} 26. Nb5 {[%clk
00:07:46]} {[%emt 00:01:16]} Rfb8 {[%clk 00:08:29]} {[%emt 00:04:22]} 27. c7
{[%clk 00:04:48]} {[%emt 00:03:29]} Rxb5 {[%clk 00:08:32]} {[%emt 00:00:27]} 28.
Rxb5 {[%clk 00:04:48]} {[%emt 00:00:30]} Bxb5 {[%clk 00:08:45]} {[%emt
00:00:17]} 29. c8=Q {[%clk 00:04:55]} {[%emt 00:00:22]} Rxc8 {[%clk 00:09:09]}
{[%emt 00:00:06]} 30. Qxc8 {[%clk 00:05:22]} {[%emt 00:00:03]} Bxf1 {[%clk
00:08:30]} {[%emt 00:01:09]} 31. Nxf1 {[%clk 00:04:52]} {[%emt 00:01:00]} Ne2+
{[%clk 00:03:29]} {[%emt 00:05:31]} 32. Kh2 {[%clk 00:05:13]} {[%emt 00:00:08]}
Qd5 {[%clk 00:03:20]} {[%emt 00:00:38]} 33. Ng3 {[%clk 00:04:00]} {[%emt
00:01:44]} Nxg3 {[%clk 00:03:13]} {[%emt 00:00:38]} 34. Kxg3 {[%clk 00:04:21]}
{[%emt 00:00:08]} Qf7 {[%clk 00:03:36]} {[%emt 00:00:08]} 35. Qc6 {[%clk
00:03:27]} {[%emt 00:01:24]} Qf5 {[%clk 00:03:57]} {[%emt 00:00:08]} 36. Qb7
{[%clk 00:03:31]} {[%emt 00:00:26]} Kg8 {[%clk 00:02:52]} {[%emt 00:01:35]} 37.
Qa8+ {[%clk 00:03:19]} {[%emt 00:00:43]} Kh7 {[%clk 00:02:59]} {[%emt
00:00:23]} 38. Qb7 {[%clk 00:03:43]} {[%emt 00:00:05]} Kg8 {[%clk 00:02:50]}
{[%emt 00:00:40]} 1/2-1/2